fUSD/lending_fUSD_20260606
["ID","MTS","AMOUNT","RATE_DAILY","PERIOD"]
[424255382,1780707043000,-3870.58233412,0.000164,2]
[424255360,1780707043000,-3870.58233412,0.000156,2]
[424255370,1780707043000,-933.0,0.00015867,2]
[424255358,1780707043000,-1541.55,0.000155,2]
[424255331,1780707043000,-166.66,0.00013836,2]
[424255368,1780707043000,-150.0,0.00015867,2]
[424255342,1780707043000,-1972.0,0.00014439,2]
[424255330,1780707043000,-250.0,0.00013835,2]
[424255334,1780707043000,-7378.77872167,0.00013924,2]
[424255332,1780707043000,-180.82,0.00013879,2]
[424255341,1780707043000,-75020.91420834,0.00014413,2]
[424255339,1780707043000,-166.66,0.00014247,2]
[424255335,1780707043000,-166.66,0.00013973,2]
[424255338,1780707043000,-166.66,0.0001411,2]
[424255336,1780707043000,-48613.275807,0.0001399,2]
[424255337,1780707043000,-209.04915287,0.00013999,2]
[424255340,1780707043000,-166.66,0.00014384,2]
[424255343,1780707043000,-169.81675444,0.00014521,10]
[424255333,1780707043000,-55280.01205774,0.00013923,2]
[424255352,1780707043000,-878.55,0.00015408,2]
[424255344,1780707043000,-171.1,0.000146,5]
[424255353,1780707043000,-675.03,0.00015408,2]
[424255351,1780707043000,-626.78,0.00014956,2]
[424255349,1780707043000,-153.99539712,0.000149,2]
[424255361,1780707043000,-291.85495474,0.000156,2]
[424255355,1780707043000,-500.0,0.00015499,2]
[424255346,1780707043000,-234.32101091,0.00014888,2]
[424255354,1780707043000,-951.0,0.00015408,2]
[424255347,1780707043000,-153.99539714,0.000149,2]
[424255350,1780707043000,-688.17,0.00014956,2]
[424255348,1780707043000,-153.99539712,0.000149,2]
[424255345,1780707043000,-171.1,0.000146,5]
[424255434,1780707044000,-479.42252191,0.00018647,2]
[424255437,1780707044000,-560.88168325,0.000187,2]
[424255431,1780707044000,-2733.19054777,0.00018602,2]
[424255425,1780707044000,-560.88168325,0.000185,2]
[424255432,1780707044000,-2733.19054777,0.00018605,2]
[424255424,1780707044000,-973.59091289,0.000185,2]
[424255429,1780707044000,-75020.91420834,0.00018564,2]
[424255426,1780707044000,-1947.35765789,0.000185,2]
[424255428,1780707044000,-2733.19054777,0.00018553,2]
[424255430,1780707044000,-2733.19054777,0.00018578,2]
[424255427,1780707044000,-2733.19054777,0.00018509,2]
[424255436,1780707044000,-973.59091289,0.000187,2]
[424255435,1780707044000,-5800.0,0.00018695,2]
[424255433,1780707044000,-2733.19054777,0.00018626,2]
[424255443,1780707044000,-2733.19054777,0.00018809,2]
[424255445,1780707044000,-675.03,0.00018813,2]
[424255446,1780707044000,-951.0,0.00018813,2]
[424255447,1780707044000,-2733.19054777,0.00018817,2]
[424255450,1780707044000,-1357.0,0.00018867,2]
[424255449,1780707044000,-2733.19054777,0.00018864,2]
[424255448,1780707044000,-2733.19054777,0.00018857,2]
[424255451,1780707044000,-3553.0,0.00018867,2]
[424255438,1780707044000,-1947.35765789,0.000187,2]
[424255440,1780707044000,-2733.19054777,0.00018739,2]
[424255442,1780707044000,-2733.19054777,0.00018809,2]
[424255441,1780707044000,-2733.19054777,0.00018768,2]
[424255452,1780707044000,-1273.0,0.00018867,2]
[424255444,1780707044000,-878.55,0.00018813,2]
[424255412,1780707044000,-560.88168325,0.000182,2]
[424255439,1780707044000,-2733.19054777,0.00018713,2]
[424255413,1780707044000,-1947.35765789,0.000182,2]
[424255394,1780707044000,-2733.19054777,0.00017809,2]
[424255423,1780707044000,-4071.0,0.0001841,2]
[424255454,1780707044000,-1227.0,0.00018867,2]
[424255395,1780707044000,-2733.19054777,0.00017857,2]
[424255396,1780707044000,-3900.0,0.000179,6]
[424255390,1780707044000,-3870.58233412,0.00017,2]
[424255392,1780707044000,-7378.77872167,0.00017587,2]
[424255389,1780707044000,-3870.58233412,0.000168,2]
[424255391,1780707044000,-172.0,0.00017334,3]
[424255393,1780707044000,-10000.0,0.00017684,2]
[424255397,1780707044000,-2733.19054777,0.00017916,2]
[424255399,1780707044000,-2733.19054777,0.00017991,2]
[424255400,1780707044000,-973.59091289,0.00018,2]
[424255401,1780707044000,-560.88168325,0.00018,2]
[424255409,1780707044000,-2733.19054777,0.00018194,2]
[424255404,1780707044000,-2733.19054777,0.00018011,2]
[424255419,1780707044000,-2733.19054777,0.00018354,2]
[424255405,1780707044000,-2733.19054777,0.00018069,2]
[424255408,1780707044000,-2733.19054777,0.00018173,2]
[424255402,1780707044000,-1947.35765789,0.00018,2]
[424255407,1780707044000,-2733.19054777,0.00018131,2]
[424255406,1780707044000,-1124.0,0.00018072,2]
[424255411,1780707044000,-973.59091289,0.000182,2]
[424255421,1780707044000,-560.88168325,0.000184,2]
[424255417,1780707044000,-2733.19054777,0.00018318,2]
[424255414,1780707044000,-55280.01205774,0.00018202,2]
[424255422,1780707044000,-1947.35765789,0.000184,2]
[424255418,1780707044000,-2733.19054777,0.00018339,2]
[424255416,1780707044000,-2733.19054777,0.00018302,2]
[424255420,1780707044000,-973.59091289,0.000184,2]
[424255415,1780707044000,-2733.19054777,0.00018211,2]
[424255410,1780707044000,-500.0,0.00018199,2]
[424255403,1780707044000,-200.0,0.00018,2]
[424255456,1780707044000,-3641.0,0.00018867,2]
[424255398,1780707044000,-2733.19054777,0.00017959,2]
[424255455,1780707044000,-150.0,0.00018867,2]
[424255486,1780707044000,-672.0,0.0002,2]
[424255494,1780707044000,-3806.0,0.0002,2]
[424255505,1780707044000,-300.0,0.000201,10]
[424255504,1780707044000,-1124.0,0.00020024,2]
[424255493,1780707044000,-200.0,0.0002,10]
[424255506,1780707044000,-1895.50670627,0.000202,2]
[424255496,1780707044000,-704.0,0.0002,2]
[424255495,1780707044000,-638.0,0.0002,2]
[424255499,1780707044000,-200.0,0.0002,2]
[424255498,1780707044000,-800.0,0.0002,2]
[424255497,1780707044000,-3833.0,0.0002,2]
[424255501,1780707044000,-1691.0,0.0002,2]
[424255502,1780707044000,-408.0,0.0002,2]
[424255500,1780707044000,-14165.05,0.0002,2]
[424255488,1780707044000,-488.0,0.0002,2]
[424255503,1780707044000,-2844.7821403,0.00020013,2]
[424255507,1780707044000,-55280.01205774,0.00020342,2]
[424255518,1780707044000,-15000.0,0.00021,2]
[424255511,1780707044000,-1283.45,0.000206,7]
[424255509,1780707044000,-1895.50670627,0.000204,2]
[424255510,1780707044000,-1895.50670627,0.000206,2]
[424255514,1780707044000,-1895.50670627,0.000208,2]
[424255513,1780707044000,-75020.91420834,0.0002064,2]
[424255517,1780707044000,-951.0,0.00020999,2]
[424255512,1780707044000,-250.0,0.000206,2]
[424255516,1780707044000,-675.03,0.00020999,2]
[424255520,1780707044000,-1415.7318223,0.00021,2]
[424255521,1780707044000,-204.63419444,0.00021,2]
[424255519,1780707044000,-6111.0,0.00021,2]
[424255457,1780707044000,-933.0,0.00018867,2]
[424255508,1780707044000,-4071.0,0.00020381,2]
[424255483,1780707044000,-1895.50670627,0.0002,2]
[424255515,1780707044000,-878.55,0.00020999,2]
[424255490,1780707044000,-3440.0,0.0002,2]
[424255484,1780707044000,-1130.0,0.0002,2]
[424255458,1780707044000,-1021.47,0.000189,2]
[424255459,1780707044000,-151.0,0.00018983,2]
[424255461,1780707044000,-151.0,0.00018983,2]
[424255462,1780707044000,-151.0,0.00018983,2]
[424255453,1780707044000,-382.0,0.00018867,2]
[424255464,1780707044000,-151.0,0.00018983,2]
[424255465,1780707044000,-151.0,0.00018983,2]
[424255463,1780707044000,-151.0,0.00018983,2]
[424255477,1780707044000,-151.0,0.00018983,2]
[424255478,1780707044000,-151.0,0.00018983,2]
[424255466,1780707044000,-151.0,0.00018983,2]
[424255467,1780707044000,-151.0,0.00018983,2]
[424255468,1780707044000,-151.0,0.00018983,2]
[424255473,1780707044000,-151.0,0.00018983,2]
[424255460,1780707044000,-151.0,0.00018983,2]
[424255470,1780707044000,-151.0,0.00018983,2]
[424255474,1780707044000,-151.0,0.00018983,2]
[424255487,1780707044000,-862.0,0.0002,2]
[424255492,1780707044000,-587.0,0.0002,2]
[424255489,1780707044000,-2590.0,0.0002,2]
[424255485,1780707044000,-494.674534,0.0002,2]
[424255491,1780707044000,-1022.0,0.0002,2]
[424255480,1780707044000,-688.17,0.0001965,2]
[424255475,1780707044000,-151.0,0.00018983,2]
[424255469,1780707044000,-151.0,0.00018983,2]
[424255481,1780707044000,-626.78,0.0001965,2]
[424255479,1780707044000,-1124.0,0.00019023,2]
[424255472,1780707044000,-151.0,0.00018983,2]
[424255482,1780707044000,-500.0,0.00019999,2]
[424255476,1780707044000,-151.0,0.00018983,2]
[424255471,1780707044000,-151.0,0.00018983,2]
[424255555,1780707045000,-2710.0,0.00021607,5]
[424255561,1780707045000,-1273.0,0.00021867,2]
[424255553,1780707045000,-204.63419444,0.000216,2]
[424255556,1780707045000,-1895.50670627,0.000217,2]
[424255558,1780707045000,-2000.0,0.00021807,7]
[424255565,1780707045000,-3641.0,0.00021867,2]
[424255554,1780707045000,-500.0,0.00021607,2]
[424255560,1780707045000,-3553.0,0.00021867,2]
[424255564,1780707045000,-150.0,0.00021867,2]
[424255562,1780707045000,-382.0,0.00021867,2]
[424255559,1780707045000,-1357.0,0.00021867,2]
[424255563,1780707045000,-1227.0,0.00021867,2]
[424255573,1780707045000,-862.0,0.00022,2]
[424255557,1780707045000,-14165.05,0.00021713,2]
[424255567,1780707045000,-204.63419444,0.000219,2]
[424255572,1780707045000,-672.0,0.00022,2]
[424255569,1780707045000,-5000.0,0.00021918,2]
[424255578,1780707045000,-167.0,0.00022,2]
[424255576,1780707045000,-3440.0,0.00022,2]
[424255575,1780707045000,-2590.0,0.00022,2]
[424255570,1780707045000,-150.0,0.00021918,2]
[424255574,1780707045000,-488.0,0.00022,2]
[424255568,1780707045000,-1895.50670627,0.000219,2]
[424255551,1780707045000,-204.63419444,0.000214,2]
[424255577,1780707045000,-1022.0,0.00022,2]
[424255566,1780707045000,-933.0,0.00021867,2]
[424255550,1780707045000,-7378.77872167,0.00021249,2]
[424255532,1780707045000,-1022.0,0.00021,2]
[424255549,1780707045000,-957.83,0.00021205,2]
[424255571,1780707045000,-494.674534,0.00022,2]
[424255522,1780707045000,-1895.50670627,0.00021,2]
[424255526,1780707045000,-494.674534,0.00021,2]
[424255524,1780707045000,-6111.0,0.00021,2]
[424255527,1780707045000,-672.0,0.00021,2]
[424255525,1780707045000,-14002.26505086,0.00021,2]
[424255528,1780707045000,-862.0,0.00021,2]
[424255523,1780707045000,-15000.0,0.00021,2]
[424255530,1780707045000,-2590.0,0.00021,2]
[424255531,1780707045000,-3440.0,0.00021,2]
[424255533,1780707045000,-15000.0,0.00021,2]
[424255534,1780707045000,-6111.0,0.00021,2]
[424255552,1780707045000,-1895.50670627,0.000214,2]
[424255543,1780707045000,-1691.0,0.00021,2]
[424255535,1780707045000,-15000.0,0.00021,2]
[424255539,1780707045000,-638.0,0.00021,2]
[424255541,1780707045000,-3833.0,0.00021,2]
[424255542,1780707045000,-800.0,0.00021,2]
[424255536,1780707045000,-6111.0,0.00021,2]
[424255538,1780707045000,-3806.0,0.00021,2]
[424255537,1780707045000,-587.0,0.00021,2]
[424255548,1780707045000,-1021.47,0.000212,2]
[424255544,1780707045000,-408.0,0.00021,2]
[424255547,1780707045000,-1895.50670627,0.000212,2]
[424255546,1780707045000,-204.63419444,0.000212,2]
[424255545,1780707045000,-1124.0,0.00021078,2]
[424255540,1780707045000,-704.0,0.00021,2]
[424255580,1780707045000,-3806.0,0.00022,2]
[424255529,1780707045000,-488.0,0.00021,2]
[424255587,1780707045000,-408.0,0.00022,2]
[424255611,1780707045000,-488.0,0.00023,2]
[424255609,1780707045000,-672.0,0.00023,2]
[424255614,1780707045000,-1022.0,0.00023,2]
[424255618,1780707045000,-704.0,0.00023,2]
[424255616,1780707045000,-3806.0,0.00023,2]
[424255615,1780707045000,-587.0,0.00023,2]
[424255617,1780707045000,-638.0,0.00023,2]
[424255619,1780707045000,-3833.0,0.00023,2]
[424255620,1780707045000,-800.0,0.00023,2]
[424255623,1780707045000,-1021.47,0.000231,7]
[424255621,1780707045000,-1691.0,0.00023,2]
[424255624,1780707045000,-309.0,0.000231,2]
[424255607,1780707045000,-494.674534,0.00023,2]
[424255626,1780707045000,-150.0,0.00023288,2]
[424255627,1780707045000,-479.3587471,0.00023306,2]
[424255630,1780707045000,-574.98,0.00023458,2]
[424255625,1780707045000,-1000.0,0.000231,2]
[424255629,1780707045000,-14165.05,0.00023425,7]
[424255628,1780707045000,-1124.0,0.00023355,2]
[424255633,1780707045000,-500.0,0.00023999,2]
[424255632,1780707045000,-574.7294088,0.00023647,2]
[424255634,1780707045000,-151.0,0.00024,4]
[424255635,1780707045000,-494.674534,0.00024,2]
[424255637,1780707045000,-862.0,0.00024,2]
[424255636,1780707045000,-672.0,0.00024,2]
[424255589,1780707045000,-1124.0,0.00022188,2]
[424255631,1780707045000,-200.0,0.00023574,2]
[424255610,1780707045000,-862.0,0.00023,2]
[424255622,1780707045000,-408.0,0.00023,2]
[424255608,1780707045000,-1364.0,0.00023,2]
[424255579,1780707045000,-587.0,0.00022,2]
[424255612,1780707045000,-2590.0,0.00023,2]
[424255588,1780707045000,-200.0,0.00022021,2]
[424255581,1780707045000,-638.0,0.00022,2]
[424255582,1780707045000,-1982.27,0.00022,2]
[424255583,1780707045000,-704.0,0.00022,2]
[424255584,1780707045000,-3833.0,0.00022,2]
[424255586,1780707045000,-1691.0,0.00022,2]
[424255590,1780707045000,-4071.0,0.00022353,2]
[424255601,1780707045000,-168.29,0.00022603,2]
[424255592,1780707045000,-596.24169128,0.00022407,2]
[424255591,1780707045000,-3850.37,0.000224,14]
[424255594,1780707045000,-596.24169126,0.00022407,2]
[424255585,1780707045000,-800.0,0.00022,2]
[424255596,1780707045000,-284.98708573,0.00022407,2]
[424255604,1780707045000,-200.0,0.00022798,2]
[424255593,1780707045000,-596.24169126,0.00022407,2]
[424255602,1780707045000,-315.0,0.000227,2]
[424255606,1780707045000,-978.93,0.00022975,2]
[424255613,1780707045000,-3440.0,0.00023,2]
[424255603,1780707045000,-75020.91420834,0.00022715,2]
[424255605,1780707045000,-388.26406915,0.00022942,2]
[424255598,1780707045000,-55280.01205774,0.00022481,2]
[424255597,1780707045000,-317.13,0.00022466,2]
[424255599,1780707045000,-1364.0,0.00022483,2]
[424255595,1780707045000,-284.98708574,0.00022407,2]
[424255600,1780707045000,-1359.0,0.00022483,2]
[424255682,1780707046000,-150.0,0.00024658,2]
[424255680,1780707046000,-905.92,0.00024658,2]
[424255678,1780707046000,-301.0,0.00024616,2]
[424255681,1780707046000,-1000.0,0.00024658,2]
[424255672,1780707046000,-200.0,0.00024616,2]
[424255675,1780707046000,-200.0,0.00024616,2]
[424255683,1780707046000,-300.0,0.00024658,14]
[424255671,1780707046000,-1124.0,0.00024523,2]
[424255673,1780707046000,-200.0,0.00024616,2]
[424255668,1780707046000,-878.55,0.00024515,2]
[424255674,1780707046000,-200.0,0.00024616,2]
[424255677,1780707046000,-200.0,0.00024616,2]
[424255676,1780707046000,-200.0,0.00024616,2]
[424255693,1780707046000,-1021.47,0.000249,7]
[424255685,1780707046000,-1982.27,0.00024801,7]
[424255688,1780707046000,-1273.0,0.00024867,2]
[424255689,1780707046000,-382.0,0.00024867,2]
[424255695,1780707046000,-150.0,0.000249,7]
[424255684,1780707046000,-75020.91420834,0.00024791,2]
[424255686,1780707046000,-1357.0,0.00024867,2]
[424255690,1780707046000,-1227.0,0.00024867,2]
[424255692,1780707046000,-933.0,0.00024867,2]
[424255687,1780707046000,-3553.0,0.00024867,2]
[424255691,1780707046000,-3641.0,0.00024867,2]
[424255694,1780707046000,-209.0,0.000249,7]
[424255665,1780707046000,-4071.0,0.00024324,2]
[424255679,1780707046000,-170.74298237,0.00024657,2]
[424255667,1780707046000,-812.65013937,0.00024415,2]
[424255639,1780707046000,-2590.0,0.00024,2]
[424255663,1780707046000,-200.0,0.0002424,2]
[424255638,1780707046000,-488.0,0.00024,2]
[424255640,1780707046000,-3440.0,0.00024,2]
[424255643,1780707046000,-3806.0,0.00024,2]
[424255642,1780707046000,-587.0,0.00024,2]
[424255641,1780707046000,-1022.0,0.00024,2]
[424255645,1780707046000,-215.77576141,0.00024,7]
[424255644,1780707046000,-638.0,0.00024,2]
[424255646,1780707046000,-704.0,0.00024,2]
[424255648,1780707046000,-800.0,0.00024,2]
[424255649,1780707046000,-1691.0,0.00024,2]
[424255653,1780707046000,-688.17,0.00024173,2]
[424255650,1780707046000,-240.0,0.00024,7]
[424255651,1780707046000,-408.0,0.00024,2]
[424255652,1780707046000,-277.49,0.0002411,2]
[424255647,1780707046000,-3833.0,0.00024,2]
[424255655,1780707046000,-347.9,0.00024174,2]
[424255654,1780707046000,-626.78,0.00024173,2]
[424255657,1780707046000,-200.0,0.0002424,2]
[424255658,1780707046000,-200.0,0.0002424,2]
[424255656,1780707046000,-2941.6,0.00024174,2]
[424255670,1780707046000,-951.0,0.00024515,2]
[424255660,1780707046000,-200.0,0.0002424,2]
[424255659,1780707046000,-200.0,0.0002424,2]
[424255662,1780707046000,-200.0,0.0002424,2]
[424255661,1780707046000,-200.0,0.0002424,2]
[424255664,1780707046000,-283.0,0.0002424,2]
[424255669,1780707046000,-675.03,0.00024515,2]
[424255666,1780707046000,-200.0,0.00024351,2]
[424255697,1780707046000,-150.0,0.000249,7]
[424255696,1780707046000,-150.0,0.000249,7]
[424255699,1780707046000,-150.0,0.000249,7]
[424255734,1780707046000,-150.0,0.00025129,7]
[424255736,1780707046000,-150.0,0.00025129,7]
[424255738,1780707046000,-250.0,0.00025129,7]
[424255749,1780707046000,-347.9,0.00025786,2]
[424255751,1780707046000,-2941.6,0.00025786,2]
[424255737,1780707046000,-150.0,0.00025129,7]
[424255739,1780707046000,-14165.05,0.00025138,7]
[424255752,1780707046000,-200.0,0.00025905,2]
[424255740,1780707046000,-242.64770994,0.00025169,2]
[424255741,1780707046000,-267.5751244,0.00025169,2]
[424255742,1780707046000,-731.41099736,0.00025397,2]
[424255747,1780707046000,-200.0,0.00025776,2]
[424255744,1780707046000,-180.0,0.00025739,2]
[424255743,1780707046000,-957.83,0.00025644,2]
[424255754,1780707046000,-274.99,0.00026027,7]
[424255757,1780707046000,-191.02827794,0.00026028,2]
[424255756,1780707046000,-198.2,0.00026027,7]
[424255753,1780707046000,-151.0,0.00026,4]
[424255758,1780707046000,-300.0,0.00026028,14]
[424255765,1780707046000,-200.0,0.00026681,2]
[424255764,1780707046000,-262.55344948,0.00026397,2]
[424255760,1780707046000,-211.0,0.00026171,2]
[424255762,1780707046000,-2000.0,0.00026355,7]
[424255761,1780707046000,-4071.0,0.00026296,2]
[424255759,1780707046000,-150.0,0.00026171,2]
[424255763,1780707046000,-731.41099736,0.00026397,2]
[424255698,1780707046000,-150.0,0.000249,7]
[424255725,1780707046000,-439.09,0.00025,2]
[424255735,1780707046000,-150.0,0.00025129,7]
[424255745,1780707046000,-1124.0,0.00025749,2]
[424255731,1780707046000,-424.0,0.00025,2]
[424255732,1780707046000,-200.0,0.00025128,2]
[424255702,1780707046000,-844.0,0.00024931,10]
[424255704,1780707046000,-687.08937479,0.00025,2]
[424255705,1780707046000,-877.51531788,0.00025,2]
[424255700,1780707046000,-261.0,0.000249,7]
[424255701,1780707046000,-7378.77872167,0.00024911,2]
[424255703,1780707046000,-151.0,0.00025,4]
[424255709,1780707046000,-2594.47074602,0.00025,2]
[424255720,1780707046000,-1695.0,0.00025,2]
[424255721,1780707046000,-439.09,0.00025,2]
[424255723,1780707046000,-439.09,0.00025,2]
[424255722,1780707046000,-439.09,0.00025,2]
[424255719,1780707046000,-816.0,0.00025,2]
[424255712,1780707046000,-590.90063998,0.00025,2]
[424255707,1780707046000,-497.97008557,0.00025,2]
[424255728,1780707046000,-439.09,0.00025,2]
[424255710,1780707046000,-3449.59511354,0.00025,2]
[424255713,1780707046000,-3815.10499114,0.00025,2]
[424255711,1780707046000,-1032.41011367,0.00025,2]
[424255716,1780707046000,-707.10012467,0.00025,2]
[424255714,1780707046000,-656.0,0.00025,2]
[424255724,1780707046000,-439.09,0.00025,2]
[424255727,1780707046000,-439.09,0.00025,2]
[424255726,1780707046000,-439.09,0.00025,2]
[424255718,1780707046000,-3837.35156959,0.00025,2]
[424255729,1780707046000,-439.09,0.00025,2]
[424255733,1780707046000,-150.0,0.00025129,7]
[424255730,1780707046000,-439.09,0.00025,2]
[424255804,1780707047000,-500.0,0.00026692,2]
[424255807,1780707047000,-500.0,0.00026692,2]
[424255792,1780707047000,-500.0,0.00026692,2]
[424255808,1780707047000,-500.0,0.00026692,2]
[424255805,1780707047000,-500.0,0.00026692,2]
[424255803,1780707047000,-500.0,0.00026692,2]
[424255795,1780707047000,-500.0,0.00026692,2]
[424255798,1780707047000,-500.0,0.00026692,2]
[424255800,1780707047000,-500.0,0.00026692,2]
[424255801,1780707047000,-500.0,0.00026692,2]
[424255791,1780707047000,-500.0,0.00026692,2]
[424255806,1780707047000,-500.0,0.00026692,2]
[424255802,1780707047000,-500.0,0.00026692,2]
[424255810,1780707047000,-500.0,0.00026692,2]
[424255819,1780707047000,-500.0,0.00026692,2]
[424255809,1780707047000,-500.0,0.00026692,2]
[424255812,1780707047000,-500.0,0.00026692,2]
[424255817,1780707047000,-500.0,0.00026692,2]
[424255813,1780707047000,-500.0,0.00026692,2]
[424255824,1780707047000,-500.0,0.00026692,2]
[424255818,1780707047000,-500.0,0.00026692,2]
[424255823,1780707047000,-500.0,0.00026692,2]
[424255815,1780707047000,-500.0,0.00026692,2]
[424255814,1780707047000,-500.0,0.00026692,2]
[424255822,1780707047000,-500.0,0.00026692,2]
[424255816,1780707047000,-500.0,0.00026692,2]
[424255820,1780707047000,-500.0,0.00026692,2]
[424255811,1780707047000,-500.0,0.00026692,2]
[424255796,1780707047000,-500.0,0.00026692,2]
[424255821,1780707047000,-500.0,0.00026692,2]
[424255797,1780707047000,-500.0,0.00026692,2]
[424255767,1780707047000,-500.0,0.00026692,2]
[424255766,1780707047000,-500.0,0.00026692,2]
[424255775,1780707047000,-500.0,0.00026692,2]
[424255773,1780707047000,-500.0,0.00026692,2]
[424255771,1780707047000,-500.0,0.00026692,2]
[424255769,1780707047000,-500.0,0.00026692,2]
[424255776,1780707047000,-500.0,0.00026692,2]
[424255768,1780707047000,-500.0,0.00026692,2]
[424255770,1780707047000,-500.0,0.00026692,2]
[424255772,1780707047000,-500.0,0.00026692,2]
[424255774,1780707047000,-500.0,0.00026692,2]
[424255777,1780707047000,-500.0,0.00026692,2]
[424255780,1780707047000,-500.0,0.00026692,2]
[424255779,1780707047000,-500.0,0.00026692,2]
[424255788,1780707047000,-500.0,0.00026692,2]
[424255783,1780707047000,-500.0,0.00026692,2]
[424255781,1780707047000,-500.0,0.00026692,2]
[424255778,1780707047000,-500.0,0.00026692,2]
[424255789,1780707047000,-500.0,0.00026692,2]
[424255785,1780707047000,-500.0,0.00026692,2]
[424255782,1780707047000,-500.0,0.00026692,2]
[424255787,1780707047000,-500.0,0.00026692,2]
[424255784,1780707047000,-500.0,0.00026692,2]
[424255786,1780707047000,-500.0,0.00026692,2]
[424255790,1780707047000,-500.0,0.00026692,2]
[424255799,1780707047000,-500.0,0.00026692,2]
[424255793,1780707047000,-500.0,0.00026692,2]
[424255794,1780707047000,-500.0,0.00026692,2]
[424255827,1780707047000,-500.0,0.00026692,2]
[424255844,1780707047000,-500.0,0.00026692,2]
[424255826,1780707047000,-500.0,0.00026692,2]
[424255859,1780707047000,-151.0,0.00027,4]
[424255857,1780707047000,-450.0,0.00026899,2]
[424255862,1780707047000,-1021.47,0.000271,7]
[424255863,1780707047000,-641.0,0.00027137,2]
[424255873,1780707047000,-474.00799379,0.00027397,2]
[424255864,1780707047000,-878.55,0.00027396,2]
[424255874,1780707047000,-1500.0,0.00027397,2]
[424255867,1780707047000,-626.78,0.00027396,2]
[424255865,1780707047000,-675.03,0.00027396,2]
[424255866,1780707047000,-688.17,0.00027396,2]
[424255868,1780707047000,-951.0,0.00027396,2]
[424255869,1780707047000,-487.60733157,0.00027397,7]
[424255871,1780707047000,-290.95282698,0.00027397,2]
[424255872,1780707047000,-160.54507464,0.00027397,30]
[424255870,1780707047000,-176.86,0.00027397,2]
[424255876,1780707047000,-3084.57,0.00027397,2]
[424255886,1780707047000,-179.21175059,0.00027397,30]
[424255887,1780707047000,-401.48226882,0.00027398,14]
[424255875,1780707047000,-905.92,0.00027397,2]
[424255878,1780707047000,-528.75,0.00027397,2]
[424255881,1780707047000,-1022.33,0.00027397,2]
[424255877,1780707047000,-1000.0,0.00027397,20]
[424255880,1780707047000,-57302.32,0.00027397,10]
[424255883,1780707047000,-39793.28,0.00027397,10]
[424255879,1780707047000,-300.0,0.00027397,2]
[424255882,1780707047000,-47751.94,0.00027397,10]
[424255884,1780707047000,-155.3049636,0.00027397,7]
[424255856,1780707047000,-450.0,0.00026899,2]
[424255860,1780707047000,-215.77576141,0.00027,7]
[424255834,1780707047000,-500.0,0.00026692,2]
[424255855,1780707047000,-450.0,0.00026899,2]
[424255858,1780707047000,-384.0,0.00026899,2]
[424255836,1780707047000,-500.0,0.00026692,2]
[424255835,1780707047000,-500.0,0.00026692,2]
[424255828,1780707047000,-500.0,0.00026692,2]
[424255825,1780707047000,-500.0,0.00026692,2]
[424255829,1780707047000,-500.0,0.00026692,2]